[Event "10th Cherry Blossom Classic 2023"]
[Site "Dulles"]
[Date "2023.05.27"]
[Round "3.18"]
[White "Slate, Kent"]
[Black "Aripov, Iskandar"]
[Result "1-0"]
[ECO "B27"]
[WhiteElo "1989"]
[BlackElo "2211"]
[Annotator "TA"]
[PlyCount "179"]
[EventDate "2023.05.24"]
[EventType "swiss"]
[EventCountry "USA"]
[SourceTitle "playchess.com"]
[Source "ChessBase"]
[SourceQuality "1"]
[TimeControl "5400+30"]

{[%evp 16,179,59,57,65,71,73,76,72,82,88,83,95,84,88,51,131,131,139,90,209,194,299,256,299,191,178,126,197,193,267,164,358,356,410,410,391,386,364,275,295,280,357,353,355,343,495,506,440,414,724,675,769,700,685,675,654,583,560,508,614,639,607,490,592,581,731,736,1151,1150,1100,1118,995,1003,1697,1698,1695,1690,1521,1458,1268,1068,990,988,958,562,556,538,490,364,337,315,614,564,611,600,512,408,452,442,773,644,775,733,733,724,720,715,591,0,471,0,661,635,1125,1087,1351,1294,2776,2604,2165,1614,2676,2731,2529,2043,5700,5189,2551,2421,2570,1443,6617,6686,29965,29965,29974,29973,29973,29974,29976,29977,29978,29978,29978,29979,29979,29980,29980,29980,29980,29981,29981,29982,29982,29983,29984,29985,29987,29987,29987,29984,29984,29985,29985,29985]} 1. e4 {[%emt 0:00:03]} c5 {[%emt 0:01:56]} 2. c3 {[%emt 0:00:20]} g6 {[%emt 0:00:12]} 3. d4 {[%emt 0:00:06]} cxd4 {[%emt 0:00:04]} 4. cxd4 {[%emt 0:00:06]} d5 {[%emt 0:00:03]} 5. e5 {[%emt 0:00:06]} Nc6 {[%emt 0:00:11]} 6. Bb5 {[%emt 0:00:23]} Bg7 {[%emt 0:01:36]} 7. Nf3 {[%emt 0:00:10]} Bg4 {[%emt 0:04:16] 7...Bg4 scores better than 7...Nh6.} 8. Bxc6+ {[%emt 0:04:10]} bxc6 {[%emt 0:00:06]} 9. Nbd2 {[%emt 0:02:16]} Nh6 {[%emt 0:01:45] is the legacy move (9...e6). B27: Sicilian: 2 Nf3, unusual Black 2nd moves.} 10. O-O {[%emt 0:00:39]} O-O {[%emt 0:00:18]} 11. h3 {[%emt 0:00:53]} Bxf3 {[%emt 0:00:33] White is better.} 12. Nxf3 {[%emt 0:00:12]} Nf5 {[%emt 0:08:21]} 13. Re1 {[%emt 0:06:09] [#]} Rc8 $146 {[%emt 0:07:52]} ({Predecessor:} 13... Qb6 14. g4 Nh6 15. b3 f5 16. g5 Nf7 17. Ba3 Rae8 18. Qd2 f4 19. Kh2 Nd8 {1-0 Cuenca Jimenez,J (2555)-Domingo Nunez,R (2355) ESP-ch 87th Linares 2022 (7)}) 14. g4 {[%emt 0:14:15]} Nh6 {[%emt 0:01:48]} 15. Bf4 {[%emt 0:00:37] [#] Qd2 would be deadly. Black is weak on the dark squares} Kh8 {[%emt 0:06:04]} (15... f5 $1 $14) 16. Qd2 $36 {[%emt 0:01:21][%mdl 2048] White has strong initiative.} Ng8 {[%emt 0:00:01]} 17. e6 {[%emt 0:08:28] White is more active.} (17. Rac1 $142) 17... fxe6 {[%emt 0:14:22] [#]} (17... Nf6 $16) 18. Ng5 $1 $18 {[%emt 0:16:39][%cal Bf3g5,Bg5e6,Be6c5][%mdl 32]} (18. Rxe6 Nf6 $11) 18... Qd7 {[%emt 0:01:08]} (18... Bh6 $142 19. Nxe6 {[%mdl 64] Discovered Attack} (19. Rxe6 Nf6 $16) 19... Bxf4 20. Nxf4 Qd6) 19. Nxe6 {[%emt 0:04:23]} Rf7 {[%emt 0:01:02]} 20. Nc5 {[%emt 0:03:08]} Qd8 {[%emt 0:02:20]} 21. Re6 {[%emt 0:02:55]} (21. Be5 $18) 21... Qf8 {[%emt 0:19:35]} (21... Nf6 $16) 22. Bg3 {[%emt 0:00:56]} Qd8 {[%emt 0:05:24]} (22... Nf6 $142 23. Qb4 Ng8) 23. Rae1 {[%emt 0:01:20][%cal Ba1e1,Be1e3,Be3b3,Bb3b7][%mdl 32]} Qb6 $2 {[%emt 0:01:08]} (23... Nf6 {was necessary.} 24. Qb4 Qb6) 24. R1e3 {[%emt 0:05:13]} Bh6 {[%emt 0:03:45]} 25. Be5+ {[%emt 0:00:18]} Bg7 {[%emt 0:03:06]} 26. Rb3 {[%emt 0:03:03]} Qd8 {[%emt 0:00:01]} 27. Rb7 {[%emt 0:03:01]} Bxe5 {[%emt 0:01:02]} 28. Rxe5 {[%emt 0:00:35]} Rb8 {[%emt 0:01:10]} 29. Ne6 {[%emt 0:01:23]} ({Weaker is} 29. Rxa7 Qb6 30. Ra6 Qxb2 $16) 29... Qd6 {[%emt 0:02:38]} 30. Rxa7 {[%emt 0:00:52]} Qb4 {[%emt 0:03:54]} (30... h6 $142 31. g5 c5 32. gxh6 (32. Nxc5 Qb6 $16) 32... Rf6) 31. Qxb4 {[%emt 0:00:40]} Rxb4 {[%emt 0:00:00]} 32. b3 {[%emt 0:00:49]} Rf3 {[%emt 0:00:21]} (32... Rb8 $142 33. Re3 Nf6) 33. Kg2 {[%emt 0:00:37]} Rc3 {[%emt 0:00:02]} 34. g5 {[%emt 0:02:35]} Rb8 {[%emt 0:02:31]} 35. Re3 {[%emt 0:00:51]} Rc2 {[%emt 0:00:30]} 36. Rf3 {[%emt 0:00:12]} Re2 {[%emt 0:00:44]} 37. Nc5 {[%emt 0:00:05]} Kg7 {[%emt 0:02:16]} 38. Kf1 {[%emt 0:00:49]} Rd2 {[%emt 0:02:39]} 39. Ne6+ {[%emt 0:01:14]} Kh8 {[%emt 0:00:01]} 40. Rf7 {[%emt 0:00:22]} Rd1+ {[%emt 0:03:01]} 41. Kg2 {[%emt 0:00:13]} c5 {[%emt 0:00:40]} 42. Nf8 {[%emt 0:00:36]} Rxf8 {[%emt 0:01:01]} 43. Rxf8 {[%emt 0:00:04][%mdl 4096] Endgame KRR-KRN} Kg7 {[%emt 0:00:02]} 44. Raa8 {[%emt 0:00:07]} cxd4 {[%emt 0:00:14]} 45. Rxg8+ {[%emt 0:00:06]} Kf7 {[%emt 0:00:00]} 46. Rgf8+ {[%emt 0:00:17]} Ke6 {[%emt 0:00:27]} 47. Ra6+ {[%emt 0:00:41]} Ke5 {[%emt 0:01:13]} 48. Rf3 {[%emt 0:06:29]} d3 {[%emt 0:00:33]} 49. Ra4 {[%emt 0:01:59]} d4 {[%emt 0:00:40]} 50. Rf7 {[%emt 0:03:59]} d2 {[%emt 0:01:40]} 51. Rxe7+ {[%emt 0:00:44]} Kd6 {[%emt 0:00:17] aiming for ...Rg1+.} 52. Rxd4+ {[%emt 0:00:04]} Kxe7 {[%emt 0:00:04] KR-KR} 53. Kf3 {[%emt 0:00:36]} Ke6 $2 {[%emt 0:00:59]} (53... Rg1 54. Rxd2 Rxg5) 54. Ke3 {[%emt 0:00:44]} Rh1 {[%emt 0:01:09]} 55. Rxd2 {[%emt 0:00:06]} Rxh3+ {[%emt 0:00:06]} 56. Ke4 {[%emt 0:00:03]} Rh4+ {[%emt 0:00:19]} 57. f4 {[%emt 0:00:04]} Rh1 {[%emt 0:00:20]} (57... h6 $142 58. gxh6 g5) 58. Re2 {[%emt 0:00:09]} Rb1 {[%emt 0:00:46]} 59. Re3 {[%emt 0:01:41]} Kd6 {[%emt 0:00:57]} 60. Rh3 {[%emt 0:00:46]} Re1+ {[%emt 0:00:21]} 61. Kd4 {[%emt 0:00:16]} Rf1 {[%emt 0:00:30]} 62. Ke4 {[%emt 0:00:38]} ({Less strong is} 62. Rxh7 Rxf4+ 63. Kc3 Rf5 $18) 62... Re1+ $1 {[%emt 0:00:11]} 63. Re3 $2 {[%emt 0:00:04]} (63. Kd3 $18) 63... Rf1 $2 {[%emt 0:01:00][%mdl 8192]} (63... Rb1 $11 64. Rd3+ Kc5) 64. a4 {[%emt 0:00:19]} Kc5 {[%emt 0:00:19]} 65. Ke5 {[%emt 0:00:25]} Rh1 {[%emt 0:00:34]} 66. Re4 {[%emt 0:00:00] b4+ is the strong threat.} Rf1 {[%emt 0:00:07]} 67. b4+ {[%emt 0:00:08][%cal Bb3b4,Bb4b5][%mdl 32]} Kc6 {[%emt 0:00:23]} 68. Rc4+ {[%emt 0:00:42]} Kb6 {[%emt 0:00:59]} 69. Kf6 {[%emt 0:00:14] Black must now prevent Kg7.} Rd1 {[%emt 0:00:37]} 70. Re4 {[%emt 0:00:15]} Kc6 {[%emt 0:00:33]} 71. b5+ {[%emt 0:02:00]} Kc5 {[%emt 0:00:42]} 72. Re5+ {[%emt 0:00:37]} Kd6 {[%emt 0:00:17]} 73. Re8 {[%emt 0:01:29] White threatens Rd8+ and mate.} Rf1 {[%emt 0:00:23]} 74. Kg7 {[%emt 0:00:55]} Rxf4 {[%emt 0:00:33]} 75. Kxh7 {[%emt 0:00:12] White mates.} Rxa4 {[%emt 0:00:20]} 76. Kxg6 {[%emt 0:00:43]} Rb4 {[%emt 0:00:12]} 77. Kg7 {[%emt 0:01:14]} Rxb5 {[%emt 0:00:12]} 78. g6 {[%emt 0:00:05][%cal Bg5g6,Bg6g7][%mdl 32]} Kd7 {[%emt 0:01:23]} 79. Re1 {[%emt 0:00:09]} Rb2 {[%emt 0:00:28]} 80. Kg8 {[%emt 0:01:18]} Ra2 {[%emt 0:00:35]} 81. g7 {[%emt 0:00:43]} Rh2 {[%emt 0:00:20]} 82. Re3 {[%emt 0:00:03]} Rh1 {[%emt 0:00:21]} 83. Re4 {[%emt 0:01:02]} Kd6 {[%emt 0:00:38]} 84. Kf7 {[%emt 0:00:23]} Rf1+ {[%emt 0:00:06]} 85. Kg6 {[%emt 0:00:05]} Rg1+ {[%emt 0:00:06]} 86. Kf6 {[%emt 0:00:06]} Kd7 {[%emt 0:00:21]} 87. Rh4 {[%emt 0:00:26]} Rg2 {[%emt 0:01:33]} 88. Rh8 {[%emt 0:00:11]} Rf2+ {[%emt 0:00:15]} 89. Ke5 {[%emt 0:00:03]} Re2+ {[%emt 0:00:30]} 90. Kd4 {[%emt 0:00:05] Weighted Error Value: White=0.23 (precise) /Black=0.41} 1-0

[Event "10th Cherry Blossom Classic 2023"]
[Site "Dulles"]
[Date "2023.05.27"]
[Round "3.19"]
[White "Sriniaiyer, Sudarshan"]
[Black "Samuelson, Andrew"]
[Result "1-0"]
[ECO "A70"]
[WhiteElo "2211"]
[BlackElo "2019"]
[Annotator "TA"]
[PlyCount "101"]
[EventDate "2023.05.24"]
[EventType "swiss"]
[EventCountry "USA"]
[SourceTitle "playchess.com"]
[Source "ChessBase"]
[SourceQuality "1"]
[TimeControl "5400+30"]

{[%evp 16,101,56,12,21,14,0,0,0,0,0,0,0,3,15,7,0,0,27,14,69,60,71,58,100,92,100,103,88,78,90,57,71,63,89,77,102,63,81,40,40,36,78,91,74,83,122,42,91,76,76,79,112,110,95,101,945,945,1201,1145,12840,12839,12840,12840,12837,0,1158,0,12836,12832,29984,12842,12842,12843,12843,12843,12844,12844,12844,12844,12845,12845,12847,12847,12848,12848,12849,12849]} 1. d4 {[%emt 0:00:09]} Nf6 {[%emt 0:00:07]} 2. c4 {[%emt 0:00:05]} c5 {[%emt 0:00:04]} 3. d5 {[%emt 0:00:10]} e6 {[%emt 0:00:05]} 4. Nc3 {[%emt 0:00:15]} exd5 {[%emt 0:00:04]} 5. cxd5 {[%emt 0:00:06]} d6 {[%emt 0:00:04]} 6. e4 {[%emt 0:00:25]} g6 {[%emt 0:00:05]} 7. h3 {[%emt 0:00:27]} Bg7 {[%emt 0:00:05]} 8. Nf3 {[%emt 0:00:06]} O-O {[%emt 0:00:07]} 9. Be3 {[%emt 0:00:16]} Re8 {[%emt 0:00:30] A70: Modern Benoni: 6 e4 g6 7 Nf3.} 10. Bd3 {[%emt 0:00:13]} Nxe4 {[%emt 0:00:37]} 11. Nxe4 {[%emt 0:02:21] [#]} c4 $146 {[%emt 0:00:17] The position is equal.} ({Predecessor:} 11... f5 12. Neg5 f4 13. O-O fxe3 14. Ne6 Bxe6 15. dxe6 d5 16. fxe3 Rxe6 17. e4 c4 18. exd5 {½-½ Melikhov,E (2269)-Ehlvest,J (2530) Titled Tuesday intern op 31st Jan Late blitz 2023 (8)}) 12. Bc2 {[%emt 0:02:09] Hoping for 0-0.} f5 $1 {[%emt 0:01:30]} 13. Ned2 {[%emt 0:01:51][%cal Oe1g1] Strongly threatening 0-0!} f4 {[%emt 0:00:29][%mdl 64] Pin} 14. Nxc4 {[%emt 0:00:32][%cal Oe1g1]} fxe3 {[%emt 0:00:48]} 15. Nxe3 {[%emt 0:00:36]} (15. fxe3 $2 b5 16. Ncd2 Rxe3+ 17. Kf2 Qb6 $17) 15... Bxb2 {[%emt 0:03:44]} 16. Rb1 $36 {[%emt 0:00:39][%mdl 2048] White fights for an advantage.} Bc3+ {[%emt 0:01:08]} 17. Kf1 {[%emt 0:00:28] Black must now prevent h4.} Qf6 {[%emt 0:08:59]} (17... Na6 $11) 18. h4 $1 $14 {[%emt 0:12:54][%cal Bh3h4,Bh4h5][%mdl 32]} Nd7 {[%emt 0:02:34]} 19. h5 {[%emt 0:08:45] aiming for hxg6.} Nf8 {[%emt 0:10:17]} 20. Qd3 {[%emt 0:11:04]} b5 {[%emt 0:07:11]} 21. Qxb5 {[%emt 0:09:18]} (21. Rxb5 Ba6 $15) 21... Bd7 {[%emt 0:02:04]} 22. Qd3 {[%emt 0:01:27]} Rab8 {[%emt 0:00:42]} 23. Rh4 {[%emt 0:07:21]} Rxb1+ {[%emt 0:02:48]} 24. Bxb1 {[%emt 0:00:02]} Rb8 {[%emt 0:01:09][%cal Oc3d2]} 25. Kg1 {[%emt 0:04:13]} Bb4 {[%emt 0:08:35]} 26. Bc2 {[%emt 0:11:53]} Bc5 {[%emt 0:02:01]} 27. Bb3 {[%emt 0:02:07]} gxh5 {[%emt 0:13:21]} 28. Rxh5 {[%emt 0:04:00]} Be8 {[%emt 0:02:26]} 29. Rg5+ {[%emt 0:04:32]} Bg6 {[%emt 0:00:09][%cal Of6g5] And now ...Qxg5! would win.} 30. Qd2 {[%emt 0:01:36]} Rb4 {[%emt 0:11:04] [#]} 31. Rg4 {[%emt 0:02:31]} (31. Ng4 $1 $16 {[%cal Rg4f6]} Qa1+ 32. Kh2) 31... a5 {[%emt 0:01:21]} (31... Rf4 $14) 32. Rxb4 {[%emt 0:01:06] Black is now going downhill.} (32. Nc4 {with more complications.} Nd7 33. Rf4 Qa1+ 34. Kh2) 32... axb4 {[%emt 0:00:18]} 33. Ng4 {[%emt 0:00:51]} Qa1+ {[%emt 0:00:49]} 34. Kh2 {[%emt 0:01:24]} h5 {[%emt 0:01:32] [#]} 35. Nge5 {[%emt 0:02:51][%cal Od2g5] Qg5! is the strong threat.} dxe5 $4 {[%emt 0:02:34][%mdl 8192]} (35... Kg7 $16) 36. d6+ $18 {[%emt 0:00:07]} Kg7 {[%emt 0:04:50]} 37. d7 {[%emt 0:05:06]} Nxd7 {[%emt 0:00:50]} 38. Qxd7+ {[%emt 0:00:02]} Kh6 {[%emt 0:00:28]} 39. Qd2+ {[%emt 0:00:50]} Kg7 {[%emt 0:00:44]} 40. Qd7+ {[%emt 0:01:07]} (40. Qd5 $142 Qb1 41. Qxe5+ Kh6 42. Qxc5) 40... Kh6 {[%emt 0:00:14]} 41. Qd2+ {[%emt 0:00:02]} (41. Qd8 $142 Qb1 42. Qg5+ Kg7 43. Qxe5+ Kh6 44. Qf4+ Kg7 45. Qc7+ Kh6 46. Qxc5) 41... Kg7 {[%emt 0:00:19]} 42. Qd5 {[%emt 0:00:01][%csl LRc5,LRe5]} Qc3 {[%emt 0:05:01]} 43. Nxe5 {[%emt 0:00:37]} (43. Qg8+ $142 Kf6 44. Qe6+ {[%mdl 64] Deflection} Kg7 45. Nxe5 (45. Qxe5+ Qxe5+ 46. Nxe5 Bxf2 $11) 45... Bb1 46. f4 Qxb3 47. Qxb3 Bd4 48. Qxb1) 43... Bxf2 {[%emt 0:02:02] White is clearly winning.} 44. Qg8+ {[%emt 0:00:29]} Kf6 {[%emt 0:00:08]} 45. Qe6+ {[%emt 0:00:42]} Kg5 {[%emt 0:00:09]} 46. Qxg6+ {[%emt 0:00:12]} (46. Nxg6 {leads to mate.} Bg3+ 47. Kh1 Qc1+) 46... Kf4 {[%emt 0:00:14]} 47. Nd3+ {[%emt 0:01:02]} Ke3 {[%emt 0:00:08]} 48. Nxf2 {[%emt 0:00:09] White threatens Nd1+ and mate.} Kxf2 {[%emt 0:01:05]} 49. Qc2+ {[%emt 0:00:03]} (49. Qxh5 $2 {gets mated.} Qg3+ 50. Kh1 Qxg2#) 49... Ke3 {[%emt 0:00:58]} 50. Qxc3+ {[%emt 0:00:10]} bxc3 {[%emt 0:00:07]} 51. Kg3 {[%emt 0:00:24] A cool game by Sriniaiyer.   Weighted Error Value: White=0.44/Black=0.36} 1-0

[Event "10th Cherry Blossom Classic 2023"]
[Site "Dulles"]
[Date "2023.05.27"]
[Round "3.20"]
[White "Laddha, Yash Jayesh"]
[Black "Ling, Evan"]
[Result "0-1"]
[ECO "B33"]
[WhiteElo "2195"]
[BlackElo "1952"]
[Annotator "TA"]
[PlyCount "86"]
[EventDate "2023.05.24"]
[EventType "swiss"]
[EventCountry "USA"]
[SourceTitle "playchess.com"]
[Source "ChessBase"]
[SourceQuality "1"]
[TimeControl "5400+30"]

{[%evp 24,86,16,14,14,11,25,18,18,14,14,0,0,0,0,-26,-14,-37,-12,-13,-6,-105,-105,-105,-105,-122,-87,-89,-83,-93,-88,-69,-18,-25,-32,-513,-489,-447,-368,-337,-226,-504,-497,-455,-455,-453,-428,-29988,-565,-680,-447,-680,-506,-1055,-965,-950,-773,-1385,-1264,-1235,-1015,-4590,-1247,-29989,-29990]} 1. e4 {[%emt 0:00:03]} c5 {[%emt 0:00:06]} 2. Nf3 {[%emt 0:00:04]} Nc6 {[%emt 0:00:05]} 3. d4 {[%emt 0:00:03]} cxd4 {[%emt 0:00:05]} 4. Nxd4 {[%emt 0:00:03]} Nf6 {[%emt 0:00:11]} 5. Nc3 {[%emt 0:00:04]} e5 {[%emt 0:00:04]} 6. Ndb5 {[%emt 0:01:06]} d6 {[%emt 0:00:09]} 7. Bg5 {[%emt 0:02:00]} a6 {[%emt 0:00:23]} 8. Na3 {[%emt 0:00:11]} b5 {[%emt 0:00:05]} 9. Nd5 {[%emt 0:00:03]} Be7 {[%emt 0:00:05]} 10. Bxf6 {[%emt 0:00:09]} Bxf6 {[%emt 0:00:05]} 11. c3 {[%emt 0:00:05]} Rb8 {[%emt 0:00:10]} 12. Nc2 {[%emt 0:00:39]} Bg5 {[%emt 0:00:09]} 13. a4 {[%emt 0:03:08]} bxa4 {[%emt 0:00:17] B33: Sicilian: Pelikan and Sveshnikov Variations.} 14. Ncb4 {[%emt 0:00:09]} Nxb4 {[%emt 0:00:06]} 15. cxb4 {[%emt 0:00:04]} Bd7 {[%emt 0:00:26] The position is equal.} 16. Bxa6 {[%emt 0:00:45][%cal Ob4b5]} O-O {[%emt 0:00:59]} 17. Rxa4 {[%emt 0:01:08]} Bxa4 {[%emt 0:01:46]} 18. Qxa4 {[%emt 0:00:05] [#]} Qe8 $146 {[%emt 0:03:01]} ({Predecessor:} 18... f5 19. exf5 e4 20. Qb3 Kh8 21. g4 e3 22. f4 Bxf4 23. Nxf4 Qh4+ 24. Kd1 Qxg4+ {0-1 Flores Quillas,D (2350)-Larrea,M (2291) Montevideo Duchamp Cup 6th 2023 (6)}) 19. b5 {[%emt 0:22:16]} f5 {[%emt 0:04:44]} 20. O-O {[%emt 0:09:42]} Kh8 {[%emt 0:00:45]} 21. exf5 {[%emt 0:10:16]} e4 {[%emt 0:01:34]} 22. f6 {[%emt 0:12:56]} Bxf6 $17 {[%emt 0:03:38]} ({Don't play} 22... gxf6 $6 23. Qb3 $11) 23. Qc4 {[%emt 0:07:20]} Bxb2 {[%emt 0:01:49]} 24. b6 {[%emt 0:05:37]} Qe5 {[%emt 0:02:19]} 25. b7 {[%emt 0:04:36]} Bd4 {[%emt 0:04:34][%cal Of8f2] Against Nb6} 26. Nb4 {[%emt 0:07:24] [#] aiming for Nc6.} d5 $1 {[%emt 0:09:44]} 27. Nxd5 {[%emt 0:11:35] [#]} Rxf2 {[%emt 0:15:02] Black is more active.} 28. Rxf2 $11 {[%emt 0:01:17]} Rf8 $40 {[%emt 0:00:09][%mdl 192] Wards off Qc8. Pin. White needs to defend precisely. Chess con chili.} 29. Nc3 $2 {[%emt 0:01:34][%mdl 8192] Now White is beyond hope.} Bxf2+ $19 {[%emt 0:23:50]} 30. Kh1 {[%emt 0:00:01]} Bc5 {[%emt 0:00:17]} 31. g3 {[%emt 0:00:47]} e3 {[%emt 0:02:16][%cal Oe3e2] Threatens to win with ...e2!} 32. Qb3 $2 {[%emt 0:00:48] [#]} (32. Ne4 Ba7 33. Kg2) 32... e2 $1 {[%emt 0:02:36]} 33. Bxe2 {[%emt 0:00:05]} Bd4 {[%emt 0:00:21]} 34. Qb4 {[%emt 0:00:38][%cal Rb4f8]} Re8 {[%emt 0:01:40] And now ...Qe3 would win.} (34... Bxc3 $2 35. Qxf8#) 35. Bf3 {[%emt 0:00:46]} (35. Qb5 $19 Bxc3 36. Bd3) 35... Bxc3 {[%emt 0:00:39]} (35... Qe1+ $142 36. Kg2 Qg1+ 37. Kh3 Qf1+ 38. Kg4 h5+ 39. Kh4 Bf6+ 40. Kxh5 Qh3+ 41. Kg6 Qh7+ 42. Kf7 Qg8+ 43. Kg6 Re5 44. Qb5 Qh7+ 45. Kf7 g6+ 46. Kxf6 Qg7#) 36. Qc4 {[%emt 0:00:06]} Qf6 {[%emt 0:04:14]} 37. Kg2 {[%emt 0:00:11]} (37. Qc6 $142 Qxc6 38. Bxc6) 37... Rf8 {[%emt 0:00:13]} 38. Qd5 {[%emt 0:00:30]} (38. Qc6 $142) 38... Be5 {[%emt 0:00:14]} 39. Qe4 {[%emt 0:00:31]} Bb8 {[%emt 0:00:31] White must now prevent ...g6.} 40. Qd5 {[%emt 0:00:15]} g6 {[%emt 0:00:38]} 41. Qe4 {[%emt 0:00:16]} Kg7 {[%emt 0:00:46] ...h5 would be deadly.} 42. Qd5 {[%emt 0:00:03]} Rd8 {[%emt 0:00:40]} 43. Qb3 {[%emt 0:00:30] Prevents Qb2+} Rd2+ {[%emt 0:01:06] Artfully played by Ling.   Weighted Error Value: White=1.20/Black=0.51} 0-1

[Event "10th Cherry Blossom Classic 2023"]
[Site "Dulles"]
[Date "2023.05.27"]
[Round "3.21"]
[White "Slade, Theodore"]
[Black "Shoykhet, Benjamin"]
[Result "1-0"]
[ECO "E05"]
[WhiteElo "2021"]
[BlackElo "1919"]
[Annotator "TA"]
[PlyCount "71"]
[EventDate "2023.05.24"]
[EventType "swiss"]
[EventCountry "USA"]
[SourceTitle "playchess.com"]
[Source "ChessBase"]
[SourceQuality "1"]
[TimeControl "5400+30"]

{[%evp 18,71,19,18,11,-7,-6,-10,0,0,-13,-13,0,0,20,0,0,-11,108,109,129,145,138,117,324,185,229,224,474,441,680,668,663,651,970,1012,996,991,1010,1001,983,1012,1993,1858,29981,29982,12837,29955,12841,12229,29983,29984,29984,29985,29985,29984]} 1. d4 {[%emt 0:00:02]} Nf6 {[%emt 0:00:09]} 2. c4 {[%emt 0:00:07]} e6 {[%emt 0:00:09]} 3. g3 {[%emt 0:00:09]} d5 {[%emt 0:00:07]} 4. Bg2 {[%emt 0:00:06]} Be7 {[%emt 0:00:11]} 5. Nf3 {[%emt 0:00:08]} O-O {[%emt 0:00:11]} 6. O-O {[%emt 0:00:09]} dxc4 {[%emt 0:00:09]} 7. Qc2 {[%emt 0:00:07]} a6 {[%emt 0:00:12]} 8. a4 {[%emt 0:00:11]} Bd7 {[%emt 0:00:21]} 9. Qxc4 {[%emt 0:00:21]} Bc6 {[%emt 0:00:28]} 10. Bf4 {[%emt 0:00:11]} Bd6 {[%emt 0:04:12] E05: Open Catalan: 5 Nf3 Be7.} 11. Nc3 {[%emt 0:00:12][%cal Bb1c3,Bc3e4,Be4c5,Bc5b7,Bb7a5][%mdl 32]} Bxf4 {[%emt 0:03:35]} 12. gxf4 {[%emt 0:00:11]} Qd6 {[%emt 0:00:18] The position is equal.} 13. Ne5 {[%emt 0:13:19]} Bxg2 {[%emt 0:10:30]} 14. Kxg2 {[%emt 0:00:21] [#]} Nd5 $146 {[%emt 0:04:44]} ({Predecessor:} 14... Nbd7 15. Rac1 Rac8 16. b4 Nb6 17. Qc5 Nbd5 18. Nxd5 Nxd5 19. Qxd6 cxd6 20. Nd3 Nc3 {0-1 Agarkoff,N-Belluire,P FRA-ch45 corr 1980}) 15. e3 {[%emt 0:06:53]} a5 {[%emt 0:02:25]} 16. Ne4 {[%emt 0:03:43]} Qe7 {[%emt 0:05:50]} 17. Nc5 {[%emt 0:06:46]} Na6 {[%emt 0:06:04]} (17... b6 $11 18. Ncd3 f6) 18. Nxb7 $16 {[%emt 0:07:41] White has more active pieces. The black rooks are badly placed.} Rfb8 {[%emt 0:00:48]} 19. Nxa5 {[%emt 0:01:39]} (19. Nc6 $6 Qh4 20. Nxb8 Qg4+ 21. Kh1 Qf3+ 22. Kg1 Qg4+ 23. Kh1 Qf3+ 24. Kg1 Qg4+ 25. Kh1 $11) 19... Rxb2 {[%emt 0:01:00]} 20. Qc1 {[%emt 0:03:44]} Qb4 {[%emt 0:07:31] Loses the game.} (20... Rb6 $16) 21. Nd3 {[%emt 0:10:38]} (21. Nec4 $142 Rb3 22. Nxb3 Qxb3 23. a5) 21... Qd2 $18 {[%emt 0:02:42]} 22. Qxb2 {[%emt 0:03:23]} (22. Nc4 $6 Qxd3 23. Nxb2 Qe4+ 24. Kg1 Qf3 $14) 22... Nxe3+ $2 {[%emt 0:00:49]} (22... Qxd3 23. Nc6 Qe4+ 24. Kg1 Nxf4 25. Ne7+ Kf8 26. exf4 Kxe7 27. Qa3+ Kd7) 23. Kg1 {[%emt 0:00:52]} Nxf1 {[%emt 0:03:06]} (23... Qxb2 $142 24. Nxb2 Nxf1 25. Kxf1 c5) 24. Qb7 {[%emt 0:00:19][%mdl 64] [#] Deflection} Rd8 {[%emt 0:03:50]} 25. Qxa6 {[%emt 0:00:57]} Qe2 {[%emt 0:01:41]} 26. Re1 {[%emt 0:02:33]} ({Worse is} 26. Rxf1 Qg4+ 27. Kh1 Qf3+ 28. Kg1 Qg4+ 29. Kh1 Qf3+ 30. Kg1 Qg4+ $11) 26... Qf3 {[%emt 0:01:59]} 27. Ne5 {[%emt 0:02:02]} ({Weaker is} 27. Rxf1 Qg4+ 28. Kh1 Qf3+ 29. Kg1 Qg4+ 30. Kh1 Qf3+ 31. Kg1 $11) 27... Qxf4 {[%emt 0:01:12]} 28. Rxf1 {[%emt 0:02:09]} h5 {[%emt 0:01:43]} 29. Nac6 {[%emt 0:03:56]} Rxd4 {[%emt 0:02:35]} 30. Nxd4 {[%emt 0:01:32][%cal Of1e1] [#] aiming for Re1!} Qxd4 {[%emt 0:00:05]} 31. Qa8+ {[%emt 0:01:21]} Kh7 {[%emt 0:00:05]} 32. Nxf7 {[%emt 0:00:28]} Kg6 {[%emt 0:00:37]} 33. Nd8 {[%emt 0:01:07] White wants to mate with Qg2+.} c6 {[%emt 0:00:19]} 34. Qxc6 {[%emt 0:00:20] White mates.} ({Stronger than} 34. Nxc6 Qg4+ 35. Kh1 Qf3+ 36. Kg1 Qg4+ 37. Kh1 Qf3+ 38. Kg1 Qg4+ $11) 34... Qxd8 {[%emt 0:00:40]} 35. Qxe6+ {[%emt 0:00:10]} Kh7 {[%emt 0:00:06]} 36. Qf5+ {[%emt 0:01:00] Weighted Error Value: White=0.13 (very precise) /Black=1.15} 1-0